bitfinex-derivatives/quotes_BTCF0:USTF0_20240907
["timestamp","ask_amount","ask_price","bid_price","bid_amount"]
[1725668190644,0.00927023,53953.0,53948.0,0.092704]
[1725668191741,0.10060403,53958.0,53943.0,0.0494]
[1725668191940,0.07083395,53957.0,53943.0,0.0494]
[1725668192144,0.0927,53951.0,53943.0,0.0494]
[1725668192342,0.10216038,53951.0,53943.0,0.142113]
[1725668193738,0.092701,53950.0,53943.0,0.142113]
[1725668194447,0.10179685,53950.0,53943.0,0.142113]
[1725668198747,0.092709,53946.0,53943.0,0.0494]
[1725668199049,0.10179685,53950.0,53943.0,0.0494]
[1725668199251,0.092706,53948.0,53943.0,0.0494]
[1725668199750,0.092706,53948.0,53943.0,0.01483]
[1725668199948,0.10203584,53948.0,53943.0,0.01483]
[1725668200249,0.10203584,53948.0,53941.0,0.092716]
[1725668201347,0.10203584,53948.0,53941.0,0.127296]
[1725668201744,0.092715,53942.0,53941.0,0.03458]
[1725668202053,0.092715,53942.0,53941.0,0.04941]
[1725668202250,0.00923613,53942.0,53941.0,0.04941]
[1725668202451,0.092696,53953.0,53945.0,0.092709]
[1725668202656,0.10724304,53952.0,53945.0,0.092709]
[1725668202858,0.10724304,53951.0,53945.0,0.092709]
[1725668203158,0.15821483,53950.0,53942.0,0.1446]
[1725668203356,0.16732108,53950.0,53942.0,0.1446]
[1725668203556,0.06551383,53949.0,53942.0,0.1446]
[1725668203758,0.10180725,53950.0,53942.0,0.1446]
[1725668203957,0.06474914,53949.0,53942.0,0.1446]
[1725668204158,0.092703,53949.0,53943.0,0.092713]
[1725668204357,0.092703,53949.0,53942.0,0.0971]
[1725668204657,0.092705,53948.0,53942.0,0.0971]
[1725668205445,0.092705,53948.0,53941.0,0.19725846]
[1725668205446,0.10180754,53948.0,53941.0,0.10454246]
[1725668205653,0.15768675,53947.0,53941.0,0.04941]
[1725668205962,0.092718,53940.0,53935.0,0.05513246]
[1725668206157,0.09272,53939.0,53935.0,0.05513246]
[1725668207756,0.00910254,53948.0,53936.0,0.05513246]
[1725668208065,0.092706,53948.0,53940.0,0.05513246]
[1725668208264,0.10200516,53948.0,53941.0,0.10223246]
[1725668208658,0.00929916,53948.0,53941.0,0.0471]
[1725668208859,0.092709,53946.0,53941.0,0.0471]
[1725668209259,0.092712,53944.0,53941.0,0.0471]
[1725668209463,0.092709,53946.0,53938.0,0.05513246]
[1725668209653,0.092718,53941.0,53937.0,0.05513246]
[1725668210455,0.0486,53945.0,53937.0,0.05513246]
[1725668211058,0.092719,53940.0,53937.0,0.05513246]
[1725668211362,0.092719,53940.0,53935.0,0.05513246]
[1725668211560,0.0486,53945.0,53935.0,0.05513246]
[1725668211561,0.09272,53939.0,53935.0,0.05513246]
[1725668211962,0.09272,53939.0,53936.0,0.05513246]
[1725668215752,0.10014167,53939.0,53936.0,0.05513246]
[1725668215957,0.10014167,53939.0,53937.0,0.05513246]
[1725668217059,0.092722,53938.0,53937.0,0.05513246]
[1725668217255,0.092722,53938.0,53934.0,0.07330446]
[1725668218268,0.092724,53937.0,53934.0,0.07330446]
[1725668220668,0.092723,53937.0,53936.0,0.05527958]
[1725668220876,0.092723,53937.0,53933.0,0.04941]
[1725668220877,0.092729,53934.0,53933.0,0.01975]
[1725668221170,0.092729,53934.0,53930.0,0.07330446]
[1725668221373,0.092729,53934.0,53932.0,0.05530034]
[1725668221572,0.09273,53933.0,53932.0,0.05530034]
[1725668221772,0.07563462,53933.0,53928.0,0.05530034]
[1725668221963,0.092722,53938.0,53927.0,0.07330446]
[1725668221964,0.092735,53930.0,53927.0,0.05530034]
[1725668222378,0.07563556,53929.0,53926.0,0.05530034]
[1725668222569,0.092735,53930.0,53926.0,0.05530034]
[1725668222770,0.07671132,53929.0,53926.0,0.05530034]
[1725668223068,0.092735,53930.0,53927.0,0.05530034]
[1725668223263,0.092735,53930.0,53926.0,0.05530034]
[1725668224272,0.092735,53930.0,53925.0,0.10471034]
[1725668224672,0.092735,53930.0,53925.0,0.05530034]
[1725668225063,0.09273,53934.0,53925.0,0.05530034]
[1725668225265,0.27722649,53956.0,53924.0,0.0953]
[1725668225266,0.092691,53956.0,53926.0,0.05530034]
[1725668225466,0.092725,53936.0,53927.0,0.05530034]
[1725668225771,0.092725,53936.0,53927.0,0.14804034]
[1725668225971,0.092727,53935.0,53928.0,0.05530034]
[1725668226167,0.092729,53934.0,53928.0,0.05530034]
[1725668226768,0.092729,53934.0,53927.0,0.14804034]
[1725668227069,0.092729,53934.0,53928.0,0.05530034]
[1725668227281,0.092729,53934.0,53927.0,0.14804034]
[1725668229677,0.092731,53933.0,53927.0,0.14804034]
[1725668229873,0.092731,53933.0,53927.0,0.09274]
[1725668230072,0.20235833,53941.0,53926.0,0.05530034]
[1725668230275,0.092736,53930.0,53926.0,0.05530034]
[1725668230673,0.10884149,53945.0,53926.0,0.05530034]
[1725668230674,0.19890838,53944.0,53926.0,0.05530034]
[1725668230870,0.10884149,53945.0,53928.0,0.092739]
[1725668230871,0.09374775,53943.0,53928.0,0.092739]
[1725668231072,0.07634971,53942.0,53929.0,0.092737]
[1725668231375,0.092726,53936.0,53929.0,0.092737]
[1725668231584,0.092727,53935.0,53929.0,0.092737]
[1725668232080,0.09273,53933.0,53930.0,0.05530034]
[1725668232272,0.092725,53937.0,53930.0,0.14803534]
[1725668232466,0.092727,53936.0,53931.0,0.05530034]
[1725668232672,0.092728,53935.0,53931.0,0.05530034]
[1725668233080,0.42780314,53945.0,53935.0,0.092726]
[1725668233377,0.092721,53939.0,53935.0,0.092726]
[1725668233582,0.092721,53939.0,53935.0,0.137926]
[1725668233784,0.092721,53939.0,53935.0,0.184026]
[1725668234279,0.092723,53938.0,53935.0,0.0913]
[1725668234470,0.092724,53937.0,53935.0,0.0913]
[1725668234671,0.092724,53937.0,53935.0,0.0452]
[1725668237480,0.00771192,53945.0,53936.0,0.5562]
[1725668237680,0.00946647,53949.0,53939.0,0.05522249]
[1725668237880,0.09271,53945.0,53939.0,0.14794149]
[1725668238273,0.07344558,53944.0,53939.0,0.14794149]
[1725668238476,0.10018899,53954.0,53949.0,0.092702]
[1725668238477,0.00749299,53954.0,53949.0,0.092702]
[1725668238672,0.0462,53957.0,53953.0,0.092696]
[1725668238872,0.092687,53959.0,53953.0,0.092696]
[1725668239077,0.092687,53959.0,53954.0,0.01482]
[1725668239276,0.092687,53959.0,53958.0,0.092687]
[1725668239277,0.00738701,53959.0,53958.0,0.092687]
[1725668239583,0.3265,53978.0,53958.0,0.556]
[1725668239779,0.00933752,53978.0,53967.0,0.05510795]
[1725668239975,0.00933752,53978.0,53955.0,0.0934]
[1725668239976,0.092667,53970.0,53964.0,0.05510795]
[1725668240180,0.092667,53970.0,53961.0,0.05510795]
[1725668240385,0.09267,53969.0,53960.0,0.05510795]
[1725668240580,0.06349872,53980.0,53957.0,0.05510795]
[1725668240780,0.0492,53968.0,53955.0,0.0934]
[1725668240982,0.16711095,53967.0,53954.0,0.01482]
[1725668241181,0.07171095,53966.0,53954.0,0.01482]
[1725668241391,0.07171095,53966.0,53949.0,0.0462]
[1725668241392,0.07171095,53965.0,53949.0,0.138902]
[1725668241586,0.07171095,53964.0,53949.0,0.138902]
[1725668241784,0.0954,53967.0,53949.0,0.138902]
[1725668241785,0.07171095,53963.0,53949.0,0.138902]
[1725668241986,0.07171095,53962.0,53949.0,0.138902]
[1725668242303,0.07171095,53961.0,53949.0,0.138902]
[1725668242477,0.0954,53967.0,53949.0,0.138902]
[1725668242677,0.07117616,53966.0,53949.0,0.138902]
[1725668242982,0.10280745,53967.0,53949.0,0.138902]
[1725668242983,0.092683,53961.0,53950.0,0.01482]
[1725668245090,0.092686,53959.0,53950.0,0.01482]
[1725668245282,0.0493,53958.0,53950.0,0.01482]
[1725668245480,0.0455,53957.0,53937.0,0.20574886]
[1725668245778,0.0455,53957.0,53937.0,0.1431]
[1725668246387,0.07178167,53956.0,53937.0,0.1431]
[1725668246587,0.0455,53957.0,53937.0,0.1431]
[1725668246785,0.0455,53957.0,53937.0,0.19820795]
[1725668247188,0.0455,53957.0,53944.0,0.01483]
[1725668248495,0.092697,53953.0,53944.0,0.01483]
[1725668248699,0.00949066,53952.0,53944.0,0.01483]
[1725668248883,0.0464,53952.0,53944.0,0.01483]
[1725668249084,0.00949622,53951.0,53944.0,0.01483]
[1725668250385,0.0455,53957.0,53944.0,0.01483]
[1725668251494,0.092701,53951.0,53944.0,0.01483]
[1725668251792,0.10210818,53951.0,53944.0,0.01483]
[1725668252991,0.092702,53950.0,53944.0,0.01483]
[1725668255200,0.092702,53950.0,53944.0,0.02966]
[1725668255498,0.00766944,53957.0,53951.0,0.092699]
[1725668255685,0.0493,53958.0,53951.0,0.092699]
[1725668256085,0.05680728,53958.0,53951.0,0.092699]
[1725668256289,0.14949528,53958.0,53951.0,0.092699]
[1725668256494,0.19,53957.0,53951.0,0.092699]
[1725668257188,0.19,53957.0,53952.0,0.00492]
[1725668257993,0.19,53957.0,53952.0,0.01974]
[1725668260091,0.092692,53956.0,53952.0,0.01974]
[1725668260588,0.237,53957.0,53952.0,0.01974]
[1725668262893,0.2822,53957.0,53952.0,0.01974]
[1725668263101,0.2822,53957.0,53950.0,0.092701]
[1725668263499,0.19,53953.0,53946.0,0.092707]
[1725668264810,0.19,53953.0,53947.0,0.01974]
[1725668266898,0.19,53953.0,53947.0,0.112446]
[1725668267290,0.19,53953.0,53947.0,0.16755395]
[1725668269607,0.19,53953.0,53947.0,0.112446]
[1725668270299,0.19,53953.0,53948.0,0.05510795]
[1725668270808,0.19,53953.0,53947.0,0.16755395]
[1725668271193,0.19,53953.0,53948.0,0.05510795]
[1725668271393,0.19,53953.0,53947.0,0.16755395]
[1725668271598,0.19,53953.0,53948.0,0.05510795]
[1725668272698,0.19925733,53953.0,53948.0,0.05510795]
[1725668273299,0.19925733,53953.0,53947.0,0.16755395]
[1725668274304,0.19,53949.0,53947.0,0.07484795]
[1725668274510,0.282704,53949.0,53947.0,0.01974]
[1725668274708,0.092705,53948.0,53947.0,0.01974]
[1725668274904,0.138805,53948.0,53947.0,0.01974]
[1725668275101,0.092708,53946.0,53944.0,0.05510795]
[1725668275296,0.2371,53945.0,53944.0,0.05510795]
[1725668276099,0.2371,53945.0,53943.0,0.05510795]
[1725668276300,0.2371,53945.0,53940.0,0.07347727]
[1725668276301,0.2371,53945.0,53942.0,0.05510795]
[1725668276611,0.329811,53945.0,53942.0,0.05510795]
[1725668276910,0.2371,53945.0,53941.0,0.04942]
[1725668277105,0.092715,53942.0,53941.0,0.04942]
[1725668278210,0.0479,53944.0,53941.0,0.03459]
[1725668278509,0.2371,53945.0,53939.0,0.05534673]
[1725668278510,0.07501253,53943.0,53939.0,0.05534673]
[1725668278806,0.2361,53948.0,53942.0,0.05534673]
[1725668279204,0.328805,53948.0,53942.0,0.05534673]
[1725668279406,0.328805,53948.0,53944.0,0.05534673]
[1725668279605,0.282705,53948.0,53944.0,0.05534673]
[1725668280114,0.00761147,53949.0,53945.0,0.05534673]
[1725668280306,0.0927,53951.0,53945.0,0.05534673]
[1725668280722,0.0927,53951.0,53946.0,0.05534673]
[1725668281604,0.24396133,53952.0,53946.0,0.05534673]
[1725668281809,0.07461706,53951.0,53946.0,0.19]
[1725668282002,0.07461706,53950.0,53948.0,0.092704]
[1725668282316,0.07461706,53949.0,53946.0,0.19]
[1725668282512,0.07461706,53948.0,53946.0,0.19]
[1725668282703,0.07461706,53947.0,53946.0,0.19]
[1725668282904,0.07461706,53947.0,53946.0,0.282708]
[1725668284518,0.0452,53958.0,53954.0,0.092694]
[1725668284817,0.0452,53958.0,53946.0,1.40146673]
[1725668284818,0.092691,53956.0,53951.0,0.282698]
[1725668285006,0.092696,53954.0,53950.0,0.05528117]
[1725668285315,0.0716385,53953.0,53949.0,0.05528117]
[1725668285507,0.0716385,53952.0,53948.0,0.14798517]
[1725668285710,0.0716385,53951.0,53949.0,0.092702]
[1725668285917,0.19,53958.0,53949.0,0.05528117]
[1725668286113,0.0927,53951.0,53948.0,0.05528117]
[1725668286303,0.06046118,53950.0,53948.0,0.05528117]
[1725668286705,0.092703,53949.0,53946.0,0.05528117]
[1725668287008,0.19,53947.0,53944.0,0.05528117]
[1725668287327,0.06046118,53946.0,53943.0,0.09842]
[1725668288315,0.06046118,53946.0,53943.0,0.04942]
[1725668289915,0.06046118,53946.0,53945.0,0.09271]
[1725668290116,0.19,53958.0,53946.0,0.092707]
[1725668290117,0.16238999,53954.0,53946.0,0.092707]
[1725668290412,0.11982368,53953.0,53946.0,0.092707]
[1725668290617,0.11982368,53952.0,53946.0,0.092707]
[1725668290819,0.11982368,53951.0,53946.0,0.092707]
[1725668291120,0.11982368,53950.0,53946.0,0.092707]
[1725668291421,0.00772093,53955.0,53946.0,0.092707]
[1725668291422,0.06969599,53949.0,53946.0,0.092707]
[1725668291621,0.06969599,53948.0,53946.0,0.092707]
[1725668291814,0.06969599,53947.0,53946.0,0.092707]
[1725668292323,0.06969599,53947.0,53946.0,0.0788376]
[1725668294309,0.06969599,53947.0,53944.0,0.05528117]
[1725668294717,0.06969599,53946.0,53945.0,0.01482]
[1725668297126,0.092707,53947.0,53945.0,0.01482]
[1725668297321,0.092707,53947.0,53946.0,0.05528631]
[1725668297715,0.094477,53947.0,53946.0,0.05528631]
[1725668299019,0.10199433,53947.0,53946.0,0.05528631]
[1725668300330,0.00928733,53947.0,53946.0,0.05528631]
[1725668301421,0.00928733,53947.0,53945.0,0.01482]
[1725668304320,0.00928733,53947.0,53946.0,0.0552858]
[1725668309130,0.092708,53946.0,53945.0,0.01482]
[1725668309324,0.092711,53944.0,53940.0,0.0552858]
[1725668309629,0.21071651,53943.0,53939.0,0.01498328]
[1725668309833,0.11800251,53942.0,53939.0,0.01498328]
[1725668310031,0.092714,53943.0,53939.0,0.01498328]
[1725668310032,0.11800251,53941.0,53939.0,0.01498328]
[1725668310425,0.06795446,53940.0,53939.0,0.01498328]
[1725668310623,0.11800251,53940.0,53939.0,0.01498328]
[1725668311025,0.06795446,53940.0,53938.0,0.04942]
[1725668311231,0.06795446,53939.0,53938.0,0.04942]
[1725668311424,0.06795446,53941.0,53938.0,0.04942]
[1725668311624,0.0456,53942.0,53938.0,0.04942]
[1725668311625,0.06795446,53940.0,53938.0,0.04942]
[1725668311927,0.06795446,53939.0,53938.0,0.04942]
[1725668312627,0.06795446,53941.0,53938.0,0.04942]
[1725668312828,0.06795446,53940.0,53938.0,0.04942]
[1725668313135,0.0456,53942.0,53938.0,0.04942]
[1725668313328,0.07165791,53941.0,53938.0,0.142141]
[1725668313529,0.00928733,53947.0,53938.0,0.04942]
[1725668313720,0.07116192,53946.0,53944.0,0.092711]
[1725668313920,0.07116192,53945.0,53944.0,0.092711]
[1725668314434,0.12134896,53945.0,53944.0,0.092711]
[1725668317354,0.07116192,53945.0,53944.0,0.092711]
[1725668319437,0.092681,53962.0,53945.0,0.55612]
[1725668319740,0.092681,53962.0,53953.0,0.19]
[1725668319947,0.1017348,53962.0,53957.0,0.092687]
[1725668320240,0.1091999,53962.0,53957.0,0.092687]
[1725668320536,0.0165189,53962.0,53958.0,0.092687]
[1725668320746,0.092676,53965.0,53958.0,0.092687]
[1725668320930,0.04997849,53964.0,53957.0,0.19]
[1725668321129,0.04997849,53964.0,53953.0,0.0462]
[1725668321130,0.0497,53966.0,53962.0,0.09268]
[1725668321333,0.0497,53966.0,53963.0,0.092679]
[1725668321537,0.05719917,53966.0,53963.0,0.092679]
[1725668322444,0.0092282,53968.0,53963.0,0.092679]
[1725668323133,0.0092282,53968.0,53964.0,0.092676]
[1725668323734,0.04985804,53967.0,53964.0,0.092676]
[1725668323930,0.0092282,53968.0,53965.0,0.092675]
[1725668324131,0.048,53970.0,53961.0,0.19]
[1725668324643,0.15014937,53970.0,53961.0,0.282682]
[1725668326341,0.092669,53969.0,53961.0,0.282682]
[1725668326645,0.092669,53969.0,53962.0,0.01482]
[1725668326841,0.09267,53968.0,53962.0,0.02964]
[1725668328043,0.092672,53967.0,53962.0,0.02964]
[1725668330342,0.185345,53967.0,53962.0,0.02964]
[1725668330541,0.092675,53966.0,53962.0,0.02964]
[1725668330741,0.092676,53965.0,53962.0,0.02964]
[1725668331045,0.092677,53964.0,53962.0,0.02964]
[1725668331651,0.092679,53963.0,53962.0,0.02964]
[1725668336554,0.10007717,53963.0,53962.0,0.02964]
[1725668349764,0.10184717,53963.0,53962.0,0.01482]
[1725668350767,0.10184717,53963.0,53961.0,0.01976]
[1725668351356,0.10184717,53963.0,53961.0,0.03458]
[1725668352255,0.00177,53963.0,53962.0,0.09268]
[1725668352459,0.092659,53975.0,53962.0,0.64886]
[1725668352654,0.00766307,53976.0,53974.0,0.1]
[1725668352854,0.09265,53980.0,53974.0,0.1]
[1725668353061,0.09265,53980.0,53979.0,0.1]
[1725668353265,0.00933074,53981.0,53979.0,0.1]
[1725668353464,0.0464,53982.0,53979.0,0.1]
[1725668353656,0.141839,53986.0,53979.0,0.1]
[1725668353856,0.092641,53985.0,53984.0,0.1]
[1725668354662,0.092643,53984.0,53982.0,0.00494]
[1725668355367,0.101996,53984.0,53982.0,0.00494]
[1725668356765,0.101996,53984.0,53977.0,0.19]
[1725668358468,0.101996,53984.0,53978.0,0.00494]
[1725668359170,0.092645,53983.0,53978.0,0.00494]
[1725668359775,0.282651,53979.0,53978.0,0.00494]
[1725668360064,0.092659,53975.0,53966.0,0.092672]
[1725668360968,0.092659,53975.0,53967.0,0.092672]
[1725668361562,0.092659,53975.0,53968.0,0.00494]
[1725668363575,0.19,53971.0,53969.0,0.01482]
[1725668363767,0.187267,53970.0,53969.0,0.01482]
[1725668363960,0.187267,53970.0,53961.0,0.02964]
[1725668363961,0.65048,53970.0,53961.0,0.01482]
[1725668364165,0.65048,53970.0,53953.0,0.282696]
[1725668364166,0.19,53963.0,53953.0,0.282696]
[1725668365568,0.19,53963.0,53954.0,0.00494]
[1725668365765,0.09268,53962.0,53955.0,0.01482]
[1725668368876,0.092683,53961.0,53955.0,0.01482]
[1725668369571,0.092687,53959.0,53955.0,0.01482]
[1725668369774,0.092685,53960.0,53955.0,0.01482]
[1725668369984,0.092683,53961.0,53955.0,0.01482]
[1725668371089,0.0074029,53963.0,53955.0,0.01482]
[1725668371397,0.0946,53970.0,53955.0,0.01482]
[1725668371398,0.282691,53956.0,53955.0,0.01482]
[1725668371590,0.092695,53954.0,53946.0,0.092708]
[1725668371895,0.092695,53954.0,53945.0,0.19]
[1725668372188,0.0927,53951.0,53945.0,0.19]
[1725668372393,0.0927,53951.0,53943.0,0.235012]
[1725668372787,0.0947,53958.0,53940.0,0.00753617]
[1725668372788,0.092705,53948.0,53940.0,0.00753617]
[1725668372987,0.19,53945.0,53939.0,0.092719]
[1725668373183,0.19,53945.0,53940.0,0.0346]
[1725668373388,0.19,53945.0,53940.0,0.03897]
[1725668373795,0.092711,53944.0,53940.0,0.03897]
[1725668376195,0.10012229,53944.0,53940.0,0.03897]
[1725668380903,0.092714,53943.0,53940.0,0.03897]
[1725668382093,0.19,53946.0,53940.0,0.03897]
[1725668384498,0.282708,53946.0,53940.0,0.03897]
[1725668388802,0.092708,53946.0,53940.0,0.03897]
[1725668391300,0.092712,53944.0,53940.0,0.03897]
[1725668393211,0.19,53942.0,53940.0,0.03403]
[1725668393411,0.092717,53941.0,53940.0,0.03403]
[1725668393714,0.092717,53941.0,53940.0,0.00437]
[1725668394510,0.092717,53941.0,53934.0,0.0459]
[1725668394903,0.092717,53941.0,53935.0,0.00495]
[1725668395205,0.092717,53941.0,53936.0,0.02966]
[1725668395412,0.092714,53943.0,53938.0,0.092722]
[1725668395612,0.092715,53942.0,53938.0,0.092722]
[1725668395906,0.10421039,53947.0,53936.0,0.02966]
[1725668395907,0.088323,53937.0,53936.0,0.02966]
[1725668397213,0.088323,53937.0,53935.0,0.00495]
[1725668398313,0.092715,53942.0,53935.0,0.287675]
[1725668398712,0.092715,53942.0,53936.0,0.01483]
[1725668399015,0.092717,53941.0,53937.0,0.01483]
[1725668399210,0.19,53944.0,53937.0,0.01483]
[1725668399211,0.092719,53940.0,53937.0,0.01483]
[1725668400917,0.09272,53939.0,53937.0,0.01483]
[1725668403409,0.00744114,53944.0,53937.0,0.01483]
[1725668403410,0.092722,53938.0,53937.0,0.01483]
[1725668404814,0.092725,53936.0,53935.0,0.00495]
[1725668406112,0.19743584,53938.0,53935.0,0.00495]
[1725668406113,0.00743584,53938.0,53935.0,0.00495]
[1725668406314,0.09448,53945.0,53935.0,0.07862962]
[1725668406618,0.10206195,53945.0,53939.0,0.09272]
[1725668407126,0.00935195,53945.0,53941.0,0.092716]
[1725668408112,0.10206195,53945.0,53941.0,0.092716]
[1725668409319,0.06889678,53944.0,53939.0,0.0946]
[1725668409626,0.06931487,53943.0,53940.0,0.00495]
[1725668409824,0.092712,53944.0,53940.0,0.00495]
[1725668410010,0.06931487,53943.0,53940.0,0.00495]
[1725668410210,0.092712,53944.0,53940.0,0.00495]
[1725668410410,0.06948931,53943.0,53940.0,0.00495]
[1725668410617,0.092717,53941.0,53940.0,0.00495]
[1725668411137,0.092717,53941.0,53936.0,0.02966]
[1725668411138,0.092723,53937.0,53936.0,0.02966]
[1725668411623,0.092726,53936.0,53934.0,0.07367962]
[1725668412017,0.092727,53935.0,53934.0,0.07367962]
[1725668412923,0.092727,53935.0,53934.0,0.07862962]
[1725668413421,0.092727,53935.0,53934.0,0.10828962]
[1725668414120,0.092727,53935.0,53934.0,0.03461]
[1725668414721,0.10018362,53935.0,53934.0,0.03461]
[1725668417220,0.16973266,53935.0,53934.0,0.03461]
[1725668417522,0.16978259,53935.0,53934.0,0.03461]
[1725668418322,0.16978259,53935.0,53934.0,0.02946327]
[1725668418831,0.19291062,53935.0,53934.0,0.02946327]
[1725668419019,0.26159735,53935.0,53934.0,0.01463327]
[1725668419219,0.092738,53929.0,53927.0,0.07367962]
[1725668419531,0.092738,53929.0,53926.0,0.08120211]
[1725668420719,0.092738,53929.0,53927.0,0.01483]
[1725668421119,0.092738,53929.0,53927.0,0.02966]
[1725668424216,0.092739,53928.0,53927.0,0.02966]
[1725668424627,0.092742,53927.0,53922.0,0.07367962]
[1725668424929,0.092742,53927.0,53921.0,0.07367962]
[1725668425321,0.092743,53926.0,53920.0,0.07367962]
[1725668426424,0.092743,53926.0,53921.0,0.02966]
[1725668427327,0.092744,53925.0,53921.0,0.02966]
[1725668427524,0.092746,53924.0,53921.0,0.02966]
[1725668429528,0.092746,53924.0,53922.0,0.05530213]
[1725668429926,0.092746,53924.0,53923.0,0.05530213]
[1725668430628,0.092746,53924.0,53921.0,0.19609062]
[1725668430925,0.092748,53923.0,53921.0,0.10333962]
[1725668431126,0.092748,53923.0,53921.0,0.02966]
[1725668431331,0.29033408,53930.0,53921.0,0.02966]
[1725668431332,0.19759708,53930.0,53922.0,0.092748]
[1725668431532,0.19759708,53930.0,53925.0,0.05529185]
[1725668431826,0.00759708,53930.0,53924.0,0.05529185]
[1725668432020,0.0946,53932.0,53924.0,0.05529185]
[1725668432224,0.0946,53932.0,53925.0,0.05529185]
[1725668433027,0.10229693,53932.0,53924.0,0.05529185]
[1725668433531,0.09274,53928.0,53925.0,0.05529185]
[1725668434329,0.07974,53928.0,53924.0,0.05529185]
[1725668434537,0.07974,53928.0,53925.0,0.05529185]
[1725668434922,0.07974,53928.0,53925.0,0.06029185]
[1725668435124,0.092741,53927.0,53925.0,0.06029185]
[1725668435323,0.092741,53927.0,53925.0,0.005]
[1725668435529,0.092744,53926.0,53924.0,0.006]
[1725668436123,0.092744,53926.0,53925.0,0.005]
[1725668437523,0.092737,53930.0,53926.0,0.092742]
[1725668438139,0.092742,53926.0,53925.0,0.05529185]
[1725668438436,0.092742,53926.0,53921.0,0.02966]
[1725668438437,0.092744,53925.0,53924.0,0.05529185]
[1725668438624,0.092744,53925.0,53921.0,0.10333962]
[1725668438825,0.092746,53924.0,53921.0,0.10333962]
[1725668439531,0.092746,53924.0,53922.0,0.07367962]
[1725668442223,0.093746,53924.0,53922.0,0.09050962]
[1725668442428,0.093746,53924.0,53923.0,0.07367962]
[1725668443338,0.10128326,53924.0,53923.0,0.07367962]
[1725668443939,0.20128326,53924.0,53923.0,0.07367962]
[1725668444629,0.20128326,53924.0,53922.0,0.01683]
[1725668444826,0.20128326,53924.0,53923.0,0.07382039]
[1725668445036,0.20128326,53924.0,53922.0,0.01683]
[1725668445239,0.20128326,53924.0,53923.0,0.07382056]
[1725668445536,0.20028326,53924.0,53923.0,0.002]
[1725668450241,0.092737,53930.0,53923.0,0.002]
[1725668450440,0.092737,53930.0,53929.0,0.05541542]
[1725668450636,0.17103054,53930.0,53929.0,0.05541542]
[1725668451337,0.07060862,53930.0,53929.0,0.14815242]
[1725668451642,0.092731,53933.0,53930.0,0.092735]
[1725668451836,0.092731,53933.0,53932.0,0.07387388]
[1725668452138,0.092732,53932.0,53931.0,0.07387388]
[1725668452644,0.092734,53931.0,53930.0,0.16660888]
[1725668453738,0.092734,53931.0,53930.0,0.16659232]
[1725668453931,0.092734,53931.0,53930.0,0.092735]
[1725668454239,0.097734,53931.0,53930.0,0.092735]
[1725668454438,0.097734,53931.0,53930.0,0.16658094]
[1725668457645,0.097734,53931.0,53930.0,0.092735]
[1725668458441,0.10524813,53931.0,53930.0,0.092735]
[1725668459652,0.092737,53929.0,53928.0,0.05536735]
[1725668459848,0.27139668,53929.0,53928.0,0.04157837]
[1725668460049,0.27139668,53929.0,53925.0,0.07384594]
[1725668460248,0.07865968,53928.0,53925.0,0.07384594]
[1725668460848,0.092739,53928.0,53925.0,0.07384594]
[1725668461853,0.092739,53928.0,53926.0,0.01483]
[1725668463743,0.092723,53938.0,53932.0,0.09273]
[1725668463946,0.07710923,53937.0,53933.0,0.0498]
[1725668464156,0.092723,53938.0,53933.0,0.0498]
[1725668464458,0.092723,53938.0,53934.0,0.192728]
[1725668464853,0.0907,53947.0,53937.0,0.1]
[1725668465060,0.092715,53942.0,53940.0,0.092718]
[1725668465254,0.092714,53943.0,53940.0,0.092718]
[1725668465559,0.05199579,53941.0,53940.0,0.092718]
[1725668465753,0.12787615,53941.0,53940.0,0.092718]
[1725668465946,0.07588036,53941.0,53940.0,0.092718]
[1725668466153,0.12787615,53941.0,53940.0,0.092718]
[1725668466663,0.14187615,53941.0,53940.0,0.092718]
[1725668466847,0.23459315,53941.0,53940.0,0.092718]
[1725668467155,0.18259736,53941.0,53940.0,0.092718]
[1725668467550,0.23442602,53941.0,53940.0,0.092718]
[1725668468153,0.18259736,53941.0,53940.0,0.092718]
[1725668468454,0.08988036,53941.0,53940.0,0.092718]
[1725668470054,0.08988036,53941.0,53940.0,0.10021775]
[1725668470250,0.014,53941.0,53940.0,0.10021775]
[1725668471058,0.014,53941.0,53940.0,0.29021775]
[1725668471666,0.092702,53950.0,53949.0,0.092703]
[1725668471969,0.16990652,53950.0,53949.0,0.07895284]
[1725668472856,0.18390652,53950.0,53949.0,0.07895284]
[1725668473257,0.106702,53950.0,53949.0,0.07895284]
[1725668475967,0.106702,53950.0,53949.0,0.09377284]
[1725668477456,0.106702,53950.0,53949.0,0.01482]
[1725668477659,0.106702,53950.0,53949.0,0.02964]
[1725668477962,0.014,53950.0,53949.0,0.02964]
[1725668482866,0.008,53950.0,53949.0,0.03064]
[1725668483568,0.01,53950.0,53949.0,0.03064]
[1725668485966,0.102701,53950.0,53949.0,0.03064]
[1725668486266,0.102701,53950.0,53949.0,0.001]
[1725668487371,0.658781,53950.0,53949.0,0.001]
[1725668487969,1.358781,53950.0,53949.0,0.001]
[1725668488273,1.26608,53950.0,53941.0,0.02966]
[1725668488462,0.192715,53942.0,53941.0,0.02966]
[1725668489266,0.092717,53941.0,53933.0,0.09273]
[1725668489559,0.1,53938.0,53933.0,0.09273]
[1725668490065,0.1,53938.0,53934.0,0.092729]
[1725668491067,0.1,53938.0,53935.0,0.02966]
[1725668491663,0.0461,53939.0,53935.0,0.122386]
[1725668491866,0.192712,53944.0,53938.0,0.092721]
[1725668492362,0.1,53944.0,53937.0,0.1]
[1725668492766,0.1,53944.0,53941.0,0.092716]
[1725668492974,0.105,53944.0,53941.0,0.092716]
[1725668493461,0.104,53944.0,53941.0,0.092716]
[1725668494168,0.104,53944.0,53941.0,0.093716]
[1725668494169,0.108,53944.0,53941.0,0.093716]
[1725668494372,0.108,53944.0,53941.0,0.001]